bitfinex/quotes_ETHUSD_20250414
["timestamp","ask_amount","ask_price","bid_price","bid_amount"]
[1744614460941,16.26268,1623.8,1623.4,4.92784]
[1744614461137,10.28246552,1623.9,1623.5,4.9276]
[1744614461349,5.35601552,1623.9,1623.6,4.92721]
[1744614461544,8.35601552,1623.9,1623.6,4.92721]
[1744614461741,13.28246552,1623.9,1623.5,6.22186]
[1744614462077,4.92715,1623.7,1623.3,5.72969]
[1744614462278,9.85367,1623.8,1623.4,4.92792]
[1744614462442,10.28243552,1623.9,1623.3,0.86309731]
[1744614462639,9.49763552,1623.9,1623.6,5.72875]
[1744614462843,4.57121552,1623.9,1623.6,5.79033782]
[1744614463083,5.71061,1624.1,1623.7,4.92677]
[1744614463472,10.63663,1624.1,1623.7,4.92677]
[1744614463675,4.92612,1624.0,1623.6,6.30782378]
[1744614463867,4.92645,1623.9,1623.6,1.38053378]
[1744614464075,4.92684,1623.8,1623.6,0.8015]
[1744614464374,4.92717,1623.7,1623.4,0.8015]
[1744614464558,9.85439,1623.7,1623.4,0.8015]
[1744614464950,4.92717,1623.7,1623.4,0.8015]
[1744614465686,9.85438,1623.7,1623.4,0.8015]
[1744614466056,5.71152,1623.8,1623.4,5.72925]
[1744614466250,10.63834,1623.8,1623.4,6.30833459]
[1744614466486,5.71152,1623.8,1623.4,6.30833459]
[1744614467575,10.63842,1623.8,1623.4,6.30833459]
[1744614468163,4.92702,1623.7,1623.4,1.38058459]
[1744614468683,4.92645,1623.9,1623.5,4.92737]
[1744614468856,4.92645,1623.9,1623.5,9.91645404]
[1744614469185,4.92645,1623.9,1623.5,11.0461579]
[1744614469351,5.71091,1624.0,1623.6,9.85462]
[1744614469752,5.71091,1624.0,1623.6,4.92731]
[1744614470063,10.6372,1624.0,1623.6,4.92731]
[1744614470389,4.92683,1623.8,1623.4,6.30847459]
[1744614470556,4.92642,1623.9,1623.5,4.9274]
[1744614470888,4.92642,1623.9,1623.6,0.8015]
[1744614470889,9.85312,1623.9,1623.6,0.8015]
[1744614471392,10.63728,1624.0,1623.6,0.8015]
[1744614471552,4.92641,1623.9,1623.6,5.7287]
[1744614471752,4.92641,1623.9,1623.6,0.8015]
[1744614472064,5.990143,1623.9,1623.6,0.8015]
[1744614472763,4.92672,1623.8,1623.6,0.8015]
[1744614473790,5.71095,1624.0,1623.6,5.72882]
[1744614474082,4.92615,1624.0,1623.6,5.72882]
[1744614474268,4.92615,1624.0,1623.6,10.65602]
[1744614474863,11.08878608,1624.1,1623.7,4.92698]
[1744614475297,7.92583,1624.1,1623.7,4.92698]
[1744614475499,12.85189,1624.1,1623.7,4.92698]
[1744614476003,4.57121552,1624.2,1623.8,0.85838009]
[1744614476195,4.57121552,1624.2,1624.0,4.92589]
[1744614476395,6.352,1624.4,1624.1,5.7226]
[1744614476593,4.57121552,1624.6,1624.1,0.85837123]
[1744614476894,4.57121552,1624.6,1624.2,4.92539]
[1744614477198,4.57121552,1624.6,1624.2,9.85078]
[1744614477399,4.57121552,1624.6,1624.4,0.7968]
[1744614477699,5.66353707,1624.6,1624.4,0.7968]
[1744614478989,4.57121552,1624.6,1624.5,4.92459]
[1744614479259,3.0,1624.9,1624.5,4.92443]
[1744614479577,7.92343,1624.9,1624.5,4.92443]
[1744614479888,4.92343,1624.9,1624.5,9.84886]
[1744614480083,7.92343,1624.9,1624.5,4.92443]
[1744614480287,0.792343,1624.8,1624.5,4.92443]
[1744614481800,0.792343,1624.8,1624.6,4.92428]
[1744614481964,4.57121552,1625.0,1624.8,4.92356]
[1744614482163,7.158,1625.2,1624.8,4.92356]
[1744614482164,7.158,1625.2,1624.9,4.92325]
[1744614482573,4.57121552,1625.3,1625.0,9.84592]
[1744614482896,4.57121552,1625.3,1625.1,4.9225]
[1744614483106,5.02833707,1625.3,1625.1,4.9225]
[1744614483272,10.75761707,1625.3,1624.8,0.7968]
[1744614483466,4.92258,1625.2,1624.8,5.72045]
[1744614483667,9.84523,1625.2,1624.8,5.72045]
[1744614484074,10.75752707,1625.3,1624.8,0.7968]
[1744614484294,10.75752707,1625.3,1624.9,4.92325]
[1744614484494,4.57121552,1625.3,1625.1,5.70054]
[1744614484801,4.57121552,1625.3,1625.2,4.92247]
[1744614484965,6.351,1625.5,1625.2,4.92247]
[1744614485161,9.49197552,1625.8,1625.1,0.7779]
[1744614485365,9.49199552,1625.8,1625.4,4.92171]
[1744614485608,4.57121552,1625.8,1625.4,0.7779]
[1744614485769,4.14159202,1625.9,1625.7,4.92087]
[1744614486195,4.14159202,1625.9,1625.6,4.92098]
[1744614487083,9.06198202,1625.9,1625.4,5.69973]
[1744614487298,4.92039,1625.9,1625.5,4.92135]
[1744614487666,4.92039,1625.9,1625.5,9.84272]
[1744614488473,4.92039,1625.9,1625.5,9.84273]
[1744614488667,4.92039,1625.9,1625.5,4.92135]
[1744614489200,4.92039,1625.9,1625.5,9.90423273]
[1744614489506,4.92039,1625.9,1625.6,4.92123]
[1744614490231,6.35,1626.0,1625.7,0.7779]
[1744614490530,4.57121552,1626.1,1625.9,4.92022]
[1744614492802,4.57121552,1626.1,1625.8,4.92046]
[1744614492985,4.57121552,1626.1,1625.7,0.7779]
[1744614493184,9.49096552,1626.1,1625.7,0.7779]
[1744614493400,9.49096552,1626.1,1625.7,5.69869]
[1744614494033,9.49096552,1626.1,1625.7,10.61945]
[1744614495298,4.57121552,1626.1,1625.8,4.92063]
[1744614495837,4.57121552,1626.1,1625.8,4.92051]
[1744614496012,4.57121552,1626.1,1625.8,4.92048]
[1744614496216,4.57121552,1626.1,1625.9,4.92016]
[1744614496419,4.57121552,1626.1,1626.0,0.7779]
[1744614496743,6.348,1626.3,1626.0,5.69794]
[1744614497104,6.348,1626.3,1626.0,0.7779]
[1744614497315,11.26725,1626.3,1626.0,0.7779]
[1744614498120,6.348,1626.3,1626.0,5.69776]
[1744614498794,0.05,1626.4,1626.0,0.7779]
[1744614499120,0.05,1626.4,1625.9,0.06149806]
[1744614499121,0.05,1626.4,1626.3,0.7779]
[1744614501842,0.05,1626.4,1626.3,5.69704]
[1744614502204,0.05,1626.4,1626.3,6.758664]
[1744614502743,0.05,1626.4,1626.3,1.839524]
[1744614502914,0.05,1626.4,1626.3,0.7779]
[1744614503114,0.05,1626.4,1626.3,5.69704]
[1744614504329,0.05,1626.4,1626.3,5.75851738]
[1744614504660,0.05,1626.4,1626.3,5.69704]
[1744614504870,0.05,1626.4,1626.3,5.7585193]
[1744614505140,0.05,1626.4,1626.3,7.31822223]
[1744614505506,0.05,1626.4,1626.3,7.25674293]
[1744614507261,0.05,1626.4,1626.3,7.31821852]
[1744614507460,0.05,1626.4,1626.3,7.25674293]
[1744614507629,0.05,1626.4,1626.3,7.31821853]
[1744614507959,0.05,1626.4,1626.3,7.25674293]
[1744614508163,0.05,1626.4,1626.3,16.60874293]
[1744614508325,0.05,1626.4,1626.3,17.15874293]
[1744614508531,0.4058297,1627.1,1627.0,0.7533]
[1744614508731,0.4058297,1627.1,1627.0,6.237371]
[1744614508930,0.4058297,1627.1,1627.0,1.320351]
[1744614509174,0.4058297,1627.1,1627.0,6.237371]
[1744614511649,0.4058297,1627.1,1627.0,1.320351]
[1744614511957,0.4058297,1627.1,1627.0,6.237371]
[1744614512131,0.4058297,1627.1,1627.0,6.29882673]
[1744614512465,0.4058297,1627.1,1627.0,6.237371]
[1744614513959,0.4058297,1627.1,1627.0,6.29882241]
[1744614514681,0.4058297,1627.1,1627.0,6.237371]
[1744614515351,0.4058297,1627.1,1626.9,4.91719]
[1744614515550,0.4058297,1627.1,1626.9,4.97864833]
[1744614515731,0.4058297,1627.1,1626.9,4.91719]
[1744614515948,0.4058297,1627.1,1626.9,9.83439]
[1744614516175,0.4058297,1627.1,1626.9,9.89584834]
[1744614516334,0.4058297,1627.1,1626.9,11.59566317]
[1744614516535,0.4058297,1627.1,1626.9,6.67846317]
[1744614516838,0.4058297,1627.1,1626.9,6.61700483]
[1744614517069,0.4058297,1627.1,1626.9,11.53415483]
[1744614517248,0.4058297,1627.1,1626.9,11.59561317]
[1744614517447,0.4058297,1627.1,1627.0,1.15956132]
[1744614518237,0.4058297,1627.1,1627.0,6.13803966]
[1744614518452,0.4058297,1627.1,1627.0,6.07658132]
[1744614518869,0.4058297,1627.1,1627.0,1.15956132]
[1744614519078,0.4058297,1627.1,1626.9,11.53412483]
[1744614519365,0.4058297,1627.1,1627.0,4.91702]
[1744614519736,0.4058297,1627.1,1626.7,13.78079155]
[1744614519737,6.0806397,1627.1,1626.7,13.78079155]
[1744614519959,6.0806397,1627.1,1626.7,13.78072155]
[1744614520133,6.0806397,1627.1,1626.7,15.73001171]
[1744614520335,10.9975397,1627.1,1626.7,15.73001171]
[1744614520773,4.91748,1626.9,1626.7,2.51395155]
[1744614520971,9.83502,1626.9,1626.7,2.51395155]
[1744614521150,5.67552,1626.8,1626.7,2.51395155]
[1744614521346,8.67552,1626.8,1626.7,2.51395155]
[1744614524172,13.79673552,1626.8,1626.7,2.51395155]
[1744614524473,13.24673552,1626.8,1626.7,2.51395155]
[1744614526638,13.79673552,1626.8,1626.7,2.51395155]
[1744614527251,4.91958,1626.2,1625.9,0.794]
[1744614527446,4.91958,1626.2,1625.9,5.71431]
[1744614527645,4.91958,1626.2,1626.0,0.571431]
[1744614528054,4.91958,1626.2,1625.8,0.794]
[1744614528267,4.91986,1626.1,1625.8,0.794]
[1744614528445,4.92032,1626.0,1625.6,5.71525]
[1744614528641,4.9205,1625.9,1625.6,0.794]
[1744614529347,5.67822,1626.0,1625.4,7.138]
[1744614529348,4.92109,1625.7,1625.4,7.138]
[1744614529649,4.92065,1625.8,1625.5,0.7138]
[1744614530168,8.67805,1626.0,1625.6,4.92114]
[1744614530588,5.67805,1626.0,1625.6,4.92109]
[1744614530751,9.49106552,1626.1,1625.7,5.71481]
[1744614530944,4.92005,1626.0,1625.7,0.794]
[1744614531168,4.92035,1625.9,1625.7,1.365509]
[1744614531371,4.92012,1626.0,1625.7,0.794]
[1744614532477,9.84037,1626.0,1625.7,0.794]
[1744614533051,4.92012,1626.0,1625.7,0.794]
[1744614533360,9.84037,1626.0,1625.7,0.794]
[1744614534652,4.92012,1626.0,1625.7,0.794]
[1744614534857,9.84036,1626.0,1625.7,1.86378382]
[1744614535990,4.92012,1626.0,1625.7,1.86378382]
[1744614536487,9.84035,1626.0,1625.7,0.794]
[1744614536691,9.84098,1625.9,1625.5,6.44244]
[1744614537003,4.92065,1625.8,1625.5,6.44244]
[1744614537360,4.92035,1625.9,1625.5,11.36384]
[1744614537694,9.84092,1625.9,1625.5,6.4423]
[1744614537989,9.84159,1625.8,1625.5,1.5209]
[1744614538161,4.92067,1625.8,1625.5,1.5209]
[1744614538560,4.92067,1625.8,1625.5,0.7138]
[1744614538756,4.92106,1625.7,1625.4,4.9217]
[1744614538957,4.92168,1625.5,1625.3,7.1521]
[1744614539187,0.8181,1625.9,1625.3,12.07397]
[1744614539392,4.92078,1625.8,1625.4,4.92176]
[1744614539692,4.92095,1625.7,1625.4,4.92169]
[1744614539994,4.92095,1625.7,1625.4,6.68279682]
[1744614540189,4.92095,1625.7,1625.4,6.621281]
[1744614540485,4.92078,1625.8,1625.4,11.542991]
[1744614540690,10.65896,1625.9,1625.5,4.92135]
[1744614540890,4.92068,1625.8,1625.5,4.92135]
[1744614541078,9.84151,1625.8,1625.5,1.16042968]
[1744614541290,4.92099,1625.7,1625.5,1.16042968]
[1744614542177,4.92125,1625.6,1625.4,1.699591]
[1744614542362,4.92125,1625.6,1625.3,7.1521]
[1744614542859,4.92098,1625.7,1625.3,12.07411]
[1744614543059,4.92098,1625.7,1625.4,4.92185]
[1744614543267,4.9207,1625.8,1625.6,0.8071]
[1744614543766,4.9207,1625.8,1625.4,0.8071]
[1744614544081,4.9207,1625.8,1625.5,0.0615117]
[1744614544286,9.8409,1625.9,1625.5,4.92155]
[1744614544807,4.92068,1625.8,1625.4,6.936333]
[1744614544964,5.7388,1625.8,1625.4,2.014523]
[1744614545159,4.9207,1625.8,1625.4,6.9976566]
[1744614545360,4.92038,1625.9,1625.5,5.62121566]
[1744614545606,4.92066,1625.8,1625.5,0.69976566]
[1744614546403,4.92036,1625.9,1625.5,5.62127566]
[1744614546711,4.57121552,1626.1,1625.7,5.72803]
[1744614546861,4.91918,1626.3,1625.9,4.92021]
[1744614547059,4.91945,1626.2,1625.9,5.91043631]
[1744614547692,4.91945,1626.2,1625.9,0.99022631]
[1744614547898,9.8391,1626.2,1625.8,4.92055]
[1744614548287,4.91945,1626.2,1625.8,4.92055]
[1744614548798,4.91945,1626.2,1625.9,0.8046]
[1744614549793,4.91916,1626.3,1625.9,5.78629809]
[1744614550112,4.92004,1626.0,1625.7,6.347]
[1744614550314,4.92004,1626.0,1625.7,8.278425]
[1744614550515,4.92004,1626.0,1625.7,8.3399296]
[1744614550686,4.92004,1626.0,1625.7,13.2608796]
[1744614550891,4.92004,1626.0,1625.7,13.199375]
[1744614551710,4.92004,1626.0,1625.5,6.42588566]
[1744614551711,4.92038,1625.9,1625.5,6.42588566]
[1744614551921,3.15524549,1626.0,1625.5,1.50436566]
[1744614552117,4.92166,1625.5,1625.3,0.8046]
[1744614552316,4.92154,1625.6,1625.3,0.8046]
[1744614552792,4.92159,1625.5,1625.3,0.8046]
[1744614552995,4.92154,1625.6,1625.3,2.011989]
[1744614553203,9.84309,1625.6,1625.3,2.011989]
[1744614553406,4.92161,1625.5,1625.3,2.011989]
[1744614553601,4.92154,1625.6,1625.3,2.011989]
[1744614553810,4.92144,1625.6,1625.3,0.8046]
[1744614554014,4.92156,1625.5,1625.3,0.8046]
[1744614554803,4.9219,1625.4,1625.1,0.8046]
[1744614555483,4.92257,1625.2,1624.8,5.72816]
[1744614555685,5.71065,1625.4,1625.0,4.92296]
[1744614555916,0.7887,1625.4,1625.0,0.9907854]
[1744614556114,4.92238,1625.3,1624.9,4.92336]
[1744614556315,4.92249,1625.2,1624.9,4.92336]
[1744614557417,4.92238,1625.3,1624.9,4.92336]
[1744614557713,9.49249552,1625.6,1624.9,4.92336]
[1744614557714,4.92171,1625.5,1625.1,4.92269]
[1744614557911,10.28120552,1625.6,1625.2,9.90625553]
[1744614558210,9.49250552,1625.6,1625.3,6.71736555]
[1744614558718,4.57121552,1625.6,1625.3,6.71725555]
[1744614558895,4.57121552,1625.6,1625.4,4.92185]
[1744614559705,4.57121552,1625.6,1625.3,6.71725555]
[1744614559887,4.57121552,1625.6,1625.4,0.67172556]
[1744614560312,4.57121552,1625.6,1625.4,5.65508321]
[1744614560607,4.57121552,1625.6,1625.4,5.59356556]
[1744614560803,4.57121552,1625.6,1625.4,0.67172556]
[1744614561040,4.92044,1625.9,1625.5,4.92144]
[1744614561183,4.92044,1625.9,1625.5,5.48075656]
[1744614561385,9.84097,1625.9,1625.6,0.8046]
[1744614561588,4.92095,1625.7,1625.5,0.55931656]
[1744614561981,4.92091,1625.8,1625.5,0.55931656]
[1744614562612,9.84175,1625.8,1625.5,0.55931656]
[1744614563418,4.92125,1625.6,1625.4,1.47632556]
[1744614563843,4.92125,1625.6,1625.4,0.8046]
[1744614564001,7.92037,1625.9,1625.2,0.751]
[1744614564002,4.92156,1625.5,1625.2,0.751]
[1744614564336,4.9211,1625.7,1625.3,9.84415]
[1744614564836,12.84091,1625.9,1625.5,4.92132]
[1744614565043,4.92067,1625.8,1625.5,4.92132]
[1744614565242,7.92006,1626.0,1625.6,5.413372]
[1744614565750,0.7649,1626.3,1625.8,5.67164]
[1744614566067,4.91911,1626.4,1626.0,9.83979]
[1744614566219,10.25466552,1626.5,1626.1,5.73212052]
[1744614566220,9.48976552,1626.5,1626.1,5.73212052]
[1744614566428,4.91887,1626.4,1626.1,0.751]
[1744614566602,4.91883,1626.4,1626.1,0.751]
[1744614566798,0.7649,1626.7,1626.1,1.37958752]
[1744614567015,0.7649,1626.7,1626.1,5.73220052]
[1744614567212,4.91825,1626.6,1626.4,0.751]
[1744614567410,4.91822,1626.7,1626.4,0.751]
[1744614568531,4.91827,1626.6,1626.4,0.751]
[1744614569055,4.91795,1626.7,1626.4,0.751]
[1744614569815,9.83608,1626.7,1626.4,0.751]
[1744614570019,4.91827,1626.6,1626.4,0.751]
[1744614570248,9.83672,1626.6,1626.4,0.751]
[1744614570448,4.91827,1626.6,1626.4,0.751]
[1744614570629,4.91853,1626.5,1626.2,0.751]
[1744614571024,4.91827,1626.6,1626.2,0.751]
[1744614571224,4.91827,1626.6,1626.2,1.37954217]
[1744614571455,9.48900552,1626.8,1626.3,4.91884]
[1744614571618,9.48900552,1626.8,1626.5,0.751]
[1744614571824,4.91754,1626.9,1626.5,5.7309604]
[1744614572025,4.91754,1626.9,1626.5,10.6493704]
[1744614572247,4.91754,1626.9,1626.5,11.71430744]
[1744614572772,4.91799,1626.7,1626.5,0.751]
[1744614572954,4.91799,1626.7,1626.3,11.21594]
[1744614573146,4.91799,1626.7,1626.3,11.96694]
[1744614573346,4.91799,1626.7,1626.3,16.88596]
[1744614574674,4.91799,1626.7,1626.3,11.96694]
[1744614574868,4.91799,1626.7,1626.3,12.02842191]
[1744614575171,4.91799,1626.7,1626.3,13.7232051]
[1744614575172,9.83613,1626.7,1626.3,13.7232051]
[1744614575474,9.83613,1626.7,1626.3,13.66172319]
[1744614575773,4.91799,1626.7,1626.3,18.58069319]
[1744614575948,4.91799,1626.7,1626.4,4.98029186]
[1744614576271,4.91799,1626.7,1626.4,4.91881]
[1744614576470,4.91799,1626.7,1626.4,6.77686332]
[1744614577937,4.91799,1626.7,1626.4,1.85805332]
[1744614578557,4.91799,1626.7,1626.4,6.83835114]
[1744614578762,4.9177,1626.8,1626.4,6.83835114]
[1744614578973,4.9177,1626.8,1626.4,6.77687332]
[1744614579334,4.9177,1626.8,1626.4,1.85805332]
[1744614579540,4.91803,1626.7,1626.4,1.85805332]
[1744614580171,9.83617,1626.7,1626.4,1.85805332]
[1744614580970,4.91834,1626.6,1626.3,7.048]
[1744614581176,9.83601,1626.7,1626.3,12.02849172]
[1744614581782,9.83609,1626.7,1626.3,11.96701]
[1744614582186,4.91867,1626.5,1626.3,7.048]
[1744614582684,4.91867,1626.5,1626.3,6.297]
[1744614582889,4.91928,1626.3,1626.1,0.7847]
[1744614583385,4.91928,1626.3,1626.0,6.295]
[1744614583543,4.91946,1626.2,1625.9,5.70486]
[1744614584258,4.91979,1626.1,1625.8,4.92061]
[1744614585162,9.83914,1626.2,1625.8,4.98200057]
[1744614585359,4.91946,1626.2,1625.8,11.60080163]
[1744614585566,4.91946,1626.2,1625.8,6.61876106]
[1744614585567,9.83908,1626.2,1625.8,6.61876106]
[1744614585768,4.91992,1626.1,1625.8,1.69826106]
[1744614585942,9.83986,1626.1,1625.8,1.69826106]
[1744614586247,4.91992,1626.1,1625.8,1.69826106]
[1744614586568,4.92018,1626.0,1625.7,7.0797]
[1744614587457,4.92018,1626.0,1625.7,7.05261579]
[1744614588180,4.92018,1626.0,1625.6,5.413242]
[1744614588348,4.92076,1625.8,1625.4,69.67725]
[1744614589178,10.65016,1625.8,1625.4,64.7554]
[1744614589368,5.72926,1625.8,1625.4,64.7554]
[1744614589556,5.72926,1625.8,1625.4,70.9003596]
[1744614590677,10.6501,1625.8,1625.4,70.9003596]
[1744614590879,4.92121,1625.7,1625.4,7.0737]
[1744614591175,4.92116,1625.7,1625.4,6.289]
[1744614591582,4.92137,1625.6,1625.4,6.289]
[1744614591978,5.73006,1625.5,1625.1,11.21273]
[1744614592180,5.73006,1625.5,1625.1,12.904779]
[1744614592679,9.84416,1625.4,1625.1,6.29]
[1744614592884,4.92247,1625.2,1625.0,0.7847]
[1744614593080,4.92247,1625.2,1624.9,4.92331]
[1744614593492,4.92236,1625.3,1624.9,4.92331]
[1744614593704,9.84473,1625.3,1624.9,4.92331]
[1744614593913,10.829203,1625.3,1624.9,4.92331]
[1744614595493,4.92248,1625.2,1624.9,4.92331]
[1744614597170,6.715333,1625.3,1624.9,4.92326]
[1744614597417,5.73086,1625.3,1624.9,4.92326]
[1744614598313,3.8085,1625.5,1625.1,4.92262]
[1744614598481,8.73029,1625.5,1625.1,4.92262]
[1744614598719,4.92202,1625.4,1625.1,4.92275]
[1744614598919,4.92202,1625.4,1625.1,5.70745]
[1744614599128,13.65173,1625.5,1625.1,5.70745]
[1744614599327,8.73007,1625.5,1625.1,5.70745]
[1744614599629,13.65181,1625.5,1625.1,5.70745]
[1744614599831,4.57121552,1625.6,1625.3,4.92206]
[1744614600028,4.57121552,1625.6,1625.4,4.92185]
[1744614600234,0.8085,1625.9,1625.6,4.92117]
[1744614600750,5.72887,1625.9,1625.5,4.92153]
[1744614600949,4.57121552,1626.0,1625.7,4.92084]
[1744614601503,9.49127552,1626.0,1625.6,4.92123]
[1744614601703,9.49127552,1626.0,1625.6,4.92108]
[1744614601904,4.92069,1625.8,1625.4,5.70655]
[1744614602120,5.72919,1625.8,1625.4,5.70655]
[1744614602472,4.92096,1625.7,1625.4,5.70655]
[1744614602653,4.92096,1625.7,1625.4,0.7847]
[1744614603315,5.72919,1625.8,1625.4,5.70654]
[1744614603521,6.794146,1625.8,1625.4,10.62813]
[1744614603780,6.794146,1625.8,1625.4,10.62808]
[1744614603910,1.873456,1625.8,1625.5,4.92145]
[1744614604450,6.794176,1625.8,1625.4,5.70639]
[1744614604654,4.92098,1625.7,1625.4,0.7847]
[1744614604955,6.794176,1625.8,1625.4,5.70655]
[1744614605262,0.6794176,1625.7,1625.5,4.92144]
[1744614605417,4.92107,1625.7,1625.4,0.7847]
[1744614605612,4.92107,1625.7,1625.3,4.92215]
[1744614605854,9.84221,1625.7,1625.3,4.922]
[1744614606120,3.26436552,1625.6,1624.8,5.67526]
[1744614606346,0.804,1625.1,1624.8,4.92366]
[1744614606552,10.64982,1625.1,1624.7,7.44079366]
[1744614606758,5.7268,1625.1,1624.7,7.44070366]
[1744614606919,5.7268,1625.1,1624.7,8.88913403]
[1744614607118,5.7268,1625.1,1624.7,13.81297403]
[1744614607346,4.92341,1624.9,1624.7,2.51684366]
[1744614607519,5.72768,1624.8,1624.7,2.51684366]
[1744614608566,8.72768,1624.8,1624.7,2.51684366]
[1744614608778,11.99204552,1624.8,1624.7,2.51684366]
[1744614608926,4.92471,1624.5,1624.1,0.05]
[1744614609130,5.90961,1624.5,1624.1,4.97578]
[1744614609339,5.90961,1624.5,1624.1,0.05]
[1744614609546,4.92511,1624.4,1624.1,0.05]
[1744614609858,5.72931,1624.3,1624.1,0.05]
[1744614610444,10.65472,1624.3,1624.1,0.05]
[1744614610627,6.50827161,1624.3,1624.1,0.05]
[1744614611751,4.9255,1624.2,1624.1,0.05]
[1744614612268,6.294,1624.2,1624.1,0.05]
[1744614612420,4.57121552,1624.4,1624.1,0.05]
[1744614612622,0.804,1624.5,1624.1,0.05]
[1744614612846,5.72729,1625.0,1624.2,0.7516]
[1744614613055,5.72729,1625.0,1624.6,4.92408]
[1744614613370,0.804,1625.0,1624.7,4.92394]
[1744614613649,0.804,1625.0,1624.2,15.23520552]
[1744614613877,6.294,1625.2,1624.2,15.23520552]
[1744614613878,0.774,1625.2,1625.0,4.92307]
[1744614614078,53.541,1625.5,1625.2,4.92244]
[1744614614438,3.0,1625.5,1625.2,4.92244]
[1744614614654,10.43659202,1625.6,1625.3,4.92201]
[1744614614850,4.14159202,1625.6,1625.3,4.92196]
[1744614615657,4.14159202,1625.6,1625.4,4.92174]
[1744614615852,4.14159202,1625.6,1625.5,4.92156]
[1744614616057,9.47723122,1625.6,1625.1,4.92259]
[1744614616284,5.3356392,1625.6,1625.2,4.92224]
[1744614616580,5.3356392,1625.6,1625.2,4.92244]
[1744614617546,5.3356392,1625.6,1625.0,12.05106]
[1744614617547,4.92168,1625.5,1625.0,12.05106]
[1744614617779,4.92188,1625.4,1625.0,12.05106]
[1744614618073,4.92188,1625.4,1625.0,12.05088]
[1744614618275,0.774,1625.5,1625.1,9.84518]
[1744614618440,0.774,1625.5,1625.1,4.92258]
[1744614618644,5.69558,1625.5,1625.1,4.92258]
[1744614619391,5.69558,1625.5,1624.9,4.92336]
[1744614619392,4.92214,1625.4,1624.9,4.92336]
[1744614619684,4.92238,1625.3,1624.9,4.92336]
[1744614619987,4.92238,1625.3,1624.9,9.84652]
[1744614620284,4.92238,1625.3,1624.9,4.92316]
[1744614620483,4.92238,1625.3,1624.9,9.84633]
[1744614620687,5.491704,1625.4,1625.0,4.92294]
[1744614620889,5.69557,1625.5,1625.1,4.92276]
[1744614621085,5.69557,1625.5,1624.8,0.833]
[1744614621086,4.92186,1625.4,1624.9,4.92335]
[1744614621388,4.92234,1625.3,1624.9,4.92335]
[1744614621891,4.92234,1625.3,1624.9,9.8464]
[1744614621892,4.92217,1625.3,1624.9,9.8464]
[1744614622074,4.92186,1625.4,1625.0,4.92297]
[1744614622389,10.905695,1625.4,1625.0,4.92297]
[1744614622564,4.92217,1625.3,1624.9,4.9232]
[1744614623586,4.92296,1625.1,1624.7,11.2689]
[1744614623897,9.84594,1625.1,1624.7,4.9239]
[1744614624089,9.84594,1625.1,1624.6,4.92399]
[1744614624256,9.84594,1625.1,1624.6,6.292145]
[1744614624590,4.92296,1625.1,1624.6,6.292145]
[1744614624797,9.84597,1625.1,1624.6,6.292145]
[1744614625114,4.92349,1624.9,1624.5,5.75758]
[1744614625289,4.92349,1624.9,1624.4,11.26988]
[1744614625290,9.84714,1624.9,1624.4,11.26988]
[1744614625788,4.92409,1624.7,1624.3,5.75816]
[1744614625988,4.92451,1624.6,1624.1,4.97558]
[1744614626174,4.92466,1624.5,1624.1,4.97558]
[1744614626387,4.92466,1624.5,1624.1,5.965747]
[1744614627378,3.0,1624.8,1624.2,0.89456334]
[1744614627591,3.0,1624.8,1624.5,4.92448]
[1744614627787,5.34521552,1624.9,1624.6,4.92406]
[1744614627997,4.57121552,1624.9,1624.7,4.92393]
[1744614628890,4.57121552,1624.9,1624.6,4.92406]
[1744614629092,4.92369,1624.8,1624.5,4.92455]
[1744614629414,4.57121552,1624.9,1624.2,1.2868434]
[1744614629570,9.49470552,1624.9,1624.2,6.2121734]
[1744614629768,4.57121552,1624.9,1624.6,4.92412]
[1744614630171,5.71098,1625.1,1624.7,4.92375]
[1744614630367,5.71098,1625.1,1624.7,5.416125]
[1744614630584,4.9234,1624.9,1624.5,4.92455]
[1744614630803,0.7882,1625.1,1624.6,4.92417]
[1744614630804,3.7882,1625.1,1624.6,4.92417]
[1744614631002,8.71108,1625.1,1624.7,4.92373]
[1744614631377,13.63406,1625.1,1624.7,4.92373]
[1744614631582,4.9231,1625.0,1624.6,4.92428]
[1744614631896,9.84647,1625.0,1624.6,5.416708]
[1744614632226,4.9231,1625.0,1624.5,4.92443]
[1744614632394,8.71097,1625.1,1624.7,4.92373]
[1744614632592,3.7882,1625.1,1624.8,4.92357]
[1744614632827,8.71101,1625.1,1624.7,4.92373]
[1744614633321,8.71101,1625.1,1624.8,4.92364]
[1744614633510,9.41312661,1625.1,1624.8,4.92364]
[1744614633678,5.71101,1625.1,1624.8,4.92364]
[1744614634212,4.92322,1625.0,1624.6,4.92412]
[1744614634403,4.92322,1625.0,1624.7,4.92392]
[1744614634794,4.92322,1625.0,1624.6,4.92412]
[1744614635034,4.92339,1624.9,1624.6,4.92412]
[1744614635330,5.494362,1625.0,1624.6,9.84827]
[1744614635494,10.417632,1625.0,1624.6,4.92412]
[1744614636290,5.494362,1625.0,1624.6,4.92412]
[1744614636598,10.417652,1625.0,1624.6,4.92412]
[1744614636792,1.0417652,1624.9,1624.6,4.92412]
[1744614637339,5.9651552,1624.9,1624.6,4.92412]
[1744614637493,4.92339,1624.9,1624.6,4.92412]
[1744614637694,4.92322,1625.0,1624.6,4.92412]
[1744614637893,5.711,1625.1,1624.5,0.06154837]
[1744614638139,5.711,1625.1,1624.7,4.92382]
[1744614638435,4.9232,1625.0,1624.6,4.92428]
[1744614638804,4.9232,1625.0,1624.7,4.92398]
[1744614639007,5.986621,1625.0,1624.7,4.92398]
[1744614639406,5.986621,1625.0,1624.6,4.92428]
[1744614639407,10.909891,1625.0,1624.6,4.92428]
[1744614640146,5.986621,1625.0,1624.6,4.92428]